fUST/lending_fUST_20240912
["ID","MTS","AMOUNT","RATE_DAILY","PERIOD"]
[337844801,1726150241640,-557.58,0.00016438,2]
[337844802,1726150241660,-500.0,0.00016438,2]
[337844803,1726150241680,-500.0,0.00016438,2]
[337844804,1726150241700,-282.12415136,0.00016438,2]
[337844805,1726150241722,-265.95613818,0.00016438,2]
[337844806,1726150241743,-500.0,0.00016438,2]
[337844807,1726150241763,-539.93,0.00016438,2]
[337844808,1726150241786,-271.51837303,0.00016438,2]
[337844809,1726150241807,-508.33778867,0.00016438,2]
[337844811,1726150241828,-500.0,0.00016438,2]
[337844814,1726150241860,-633.47894258,0.00016438,2]
[337844815,1726150241880,-507.02324033,0.00016438,2]
[337844817,1726150241889,-517.18537564,0.00016438,2]
[337844819,1726150241898,-500.0,0.00016438,2]
[337844821,1726150241907,-500.0,0.00016438,2]
[337844824,1726150241917,-500.0,0.00016438,2]
[337844826,1726150241926,-500.0,0.00016438,2]
[337844827,1726150241935,-318.58275044,0.00016438,2]
[337844829,1726150241944,-500.0,0.00016438,2]
[337844831,1726150241954,-500.0,0.00016438,2]
[337844833,1726150241963,-974.73,0.00016438,2]
[337844835,1726150241972,-500.0,0.00016438,2]
[337844837,1726150241981,-500.0,0.00016438,2]
[337844840,1726150241991,-496.53764429,0.00016438,2]
[337844842,1726150242000,-500.0,0.00016438,2]
[337844843,1726150242009,-272.30336726,0.00016438,2]
[337844845,1726150242018,-500.0,0.00016438,2]
[337844847,1726150242028,-500.0,0.00016438,2]
[337844850,1726150242039,-500.0,0.00016438,2]
[337844852,1726150242049,-520.75,0.00016438,2]
[337844854,1726150242059,-500.0,0.00016438,2]
[337844856,1726150242068,-509.15737414,0.00016438,2]
[337844858,1726150242078,-237.06948409,0.00016438,2]
[337844860,1726150242087,-500.0,0.00016438,2]
[337844862,1726150242097,-500.0,0.00016438,2]
[337844864,1726150242106,-500.0,0.00016438,2]
[337844866,1726150242115,-500.0,0.00016438,2]
[337844868,1726150242124,-200.0,0.00016438,2]
[337844870,1726150242134,-500.0,0.00016438,2]
[337844872,1726150242143,-502.13506741,0.00016438,2]
[337844874,1726150242152,-500.0,0.00016438,2]
[337844876,1726150242162,-650.28,0.00016438,2]
[337844878,1726150242170,-500.0,0.00016438,2]
[337844880,1726150242179,-500.0,0.00016438,2]
[337844882,1726150242189,-500.0,0.00016438,2]
[337844884,1726150242198,-526.13699344,0.00016438,2]
[337844885,1726150242206,-500.0,0.00016438,2]
[337844887,1726150242216,-504.24803342,0.00016438,2]
[337844888,1726150242225,-500.0,0.00016438,2]
[337844889,1726150242234,-500.0,0.00016438,2]
[337844890,1726150242243,-500.0,0.00016438,2]
[337844891,1726150242252,-702.21,0.00016438,2]
[337844892,1726150242261,-500.0,0.00016438,2]
[337844893,1726150242270,-500.0,0.00016438,2]
[337844894,1726150242279,-500.0,0.00016438,2]
[337844895,1726150242289,-500.0,0.00016438,2]
[337844896,1726150242298,-500.0,0.00016438,2]
[337844897,1726150242307,-500.0,0.00016438,2]
[337844898,1726150242316,-552.29,0.00016438,2]
[337844899,1726150242326,-500.0,0.00016438,2]
[337844900,1726150242338,-500.0,0.00016438,2]
[337844901,1726150242347,-616.94192145,0.00016438,2]
[337844902,1726150242357,-500.0,0.00016438,2]
[337844903,1726150242366,-619.24,0.00016438,2]
[337844904,1726150242376,-516.87,0.00016438,2]
[337844905,1726150242385,-500.0,0.00016438,2]
[337844906,1726150242394,-500.0,0.00016438,2]
[337844907,1726150242403,-500.0,0.00016438,2]
[337844908,1726150242413,-500.0,0.00016438,2]
[337844909,1726150242422,-500.0,0.00016438,2]
[337844910,1726150242431,-500.0,0.00016438,2]
[337844911,1726150242440,-500.0,0.00016438,2]
[337844913,1726150242449,-500.0,0.00016438,2]
[337844915,1726150242458,-500.0,0.00016438,2]
[337844917,1726150242467,-500.0,0.00016438,2]
[337844919,1726150242477,-500.0,0.00016438,2]
[337844921,1726150242486,-500.0,0.00016438,2]
[337844923,1726150242496,-500.0,0.00016438,2]
[337844925,1726150242505,-600.36,0.00016438,2]
[337844927,1726150242514,-500.0,0.00016438,2]
[337844929,1726150242523,-500.0,0.00016438,2]
[337844931,1726150242533,-500.0,0.00016438,2]
[337844933,1726150242542,-500.0,0.00016438,2]
[337844935,1726150242551,-500.0,0.00016438,2]
[337844937,1726150242560,-500.0,0.00016438,2]
[337844939,1726150242570,-500.0,0.00016438,2]
[337844942,1726150242580,-500.0,0.00016438,2]
[337844944,1726150242590,-500.0,0.00016438,2]
[337844947,1726150242598,-500.0,0.00016438,2]
[337844949,1726150242608,-500.0,0.00016438,2]
[337844951,1726150242617,-500.0,0.00016438,2]
[337844953,1726150242626,-729.62,0.00016438,2]
[337844955,1726150242635,-548.54,0.00016438,2]
[337844956,1726150242644,-224.62343765,0.00016438,2]
[337844957,1726150242653,-500.0,0.00016438,2]
[337844959,1726150242662,-500.0,0.00016438,2]
[337844961,1726150242671,-500.0,0.00016438,2]
[337844963,1726150242681,-500.0,0.00016438,2]
[337844965,1726150242690,-769.97,0.00016438,2]
[337844967,1726150242699,-500.0,0.00016438,2]
[337844969,1726150242708,-500.0,0.00016438,2]
[337844970,1726150242717,-500.0,0.00016438,2]
[337844972,1726150242727,-500.0,0.00016438,2]
[337844974,1726150242736,-500.0,0.00016438,2]
[337844976,1726150242747,-893.51,0.00016438,2]
[337844977,1726150242758,-624.23,0.00016438,2]
[337844978,1726150242767,-500.0,0.00016438,2]
[337844979,1726150242777,-500.0,0.00016438,2]
[337844980,1726150242786,-500.0,0.00016438,2]
[337844981,1726150242796,-500.0,0.00016438,2]
[337844982,1726150242806,-500.0,0.00016438,2]
[337844983,1726150242815,-815.0,0.00016438,2]
[337844984,1726150242824,-1101.4,0.00016438,2]
[337844985,1726150242836,-500.0,0.00016438,2]
[337844986,1726150242846,-500.0,0.00016438,2]
[337844987,1726150242855,-500.0,0.00016438,2]
[337844988,1726150242864,-500.0,0.00016438,2]
[337844989,1726150242873,-500.0,0.00016438,2]
[337844990,1726150242882,-500.0,0.00016438,2]
[337844991,1726150242891,-500.0,0.00016438,2]
[337844992,1726150242901,-500.0,0.00016438,2]
[337844993,1726150242910,-500.0,0.00016438,2]
[337844994,1726150242919,-500.0,0.00016438,2]
[337844995,1726150242928,-523.54,0.00016438,2]
[337844996,1726150242937,-812.86,0.00016438,2]
[337844997,1726150242947,-439.53402322,0.00016438,2]
[337844998,1726150242956,-500.0,0.00016438,2]
[337844999,1726150242965,-500.0,0.00016438,2]
[337845000,1726150242974,-569.31,0.00016438,2]
[337845001,1726150242983,-958.15,0.00016438,2]
[337845002,1726150242992,-854.5,0.00016438,2]
[337845003,1726150243002,-706.99,0.00016438,2]
[337845004,1726150243011,-500.0,0.00016438,2]
[337845005,1726150243020,-7625.53,0.00016438,2]
[337845006,1726150243030,-500.0,0.00016438,2]
[337845007,1726150243039,-195.94610996,0.00016438,2]
[337845008,1726150243048,-219.65621999,0.00016438,2]
[337845009,1726150243058,-436.86837749,0.00016438,2]
[337845010,1726150243068,-500.0,0.00016438,2]
[337845011,1726150243078,-648.72,0.00016438,2]
[337845012,1726150243088,-502.13,0.00016438,2]
[337845013,1726150243097,-500.0,0.00016438,2]
[337845014,1726150243106,-253.14116381,0.00016438,2]
[337845015,1726150243116,-500.0,0.00016438,2]
[337845016,1726150243125,-500.0,0.00016438,2]
[337845017,1726150243135,-540.28,0.00016438,2]
[337845018,1726150243145,-500.0,0.00016438,2]
[337845019,1726150243155,-500.0,0.00016438,2]
[337845021,1726150243164,-1235.46,0.00016438,2]
[337845022,1726150243174,-500.0,0.00016438,2]
[337845023,1726150243183,-500.0,0.00016438,2]
[337845024,1726150243193,-500.0,0.00016438,2]
[337845025,1726150243203,-1076.19,0.00016438,2]
[337845026,1726150243213,-758.27,0.00016438,2]
[337845027,1726150243223,-500.0,0.00016438,2]
[337845028,1726150243233,-500.0,0.00016438,2]
[337845029,1726150243242,-500.0,0.00016438,2]
[337845030,1726150243252,-500.0,0.00016438,2]
[337845031,1726150243261,-500.0,0.00016438,2]
[337845032,1726150243271,-500.0,0.00016438,2]
[337845033,1726150243281,-825.45,0.00016438,2]
[337845034,1726150243290,-500.0,0.00016438,2]
[337845035,1726150243300,-1058.68,0.00016438,2]
[337845036,1726150243310,-785.22,0.00016438,2]
[337845037,1726150243319,-500.0,0.00016438,2]
[337845038,1726150243330,-980.2,0.00016438,2]
[337845039,1726150243340,-585.5,0.00016438,2]
[337845041,1726150243350,-11877.91,0.00016438,2]
[337845042,1726150243360,-500.0,0.00016438,2]
[337845043,1726150243370,-500.0,0.00016438,2]
[337845044,1726150243380,-500.0,0.00016438,2]
[337845045,1726150243390,-643.33,0.00016438,2]
[337845046,1726150243399,-500.0,0.00016438,2]
[337845047,1726150243409,-881.34,0.00016438,2]
[337845048,1726150243418,-500.0,0.00016438,2]
[337845049,1726150243428,-500.0,0.00016438,2]
[337845050,1726150243437,-500.0,0.00016438,2]
[337845051,1726150243447,-500.0,0.00016438,2]
[337845052,1726150243457,-500.0,0.00016438,2]
[337845053,1726150243467,-500.0,0.00016438,2]
[337845054,1726150243477,-510.04,0.00016438,2]
[337845055,1726150243486,-8606.77,0.00016438,2]
[337845056,1726150243496,-500.0,0.00016438,2]
[337845057,1726150243506,-654.97,0.00016438,2]
[337845058,1726150243515,-500.0,0.00016438,2]
[337845059,1726150243525,-784.9,0.00016438,2]
[337845060,1726150243535,-500.0,0.00016438,2]
[337845061,1726150243544,-740.4,0.00016438,2]
[337845062,1726150243554,-500.0,0.00016438,2]
[337845063,1726150243564,-847.21,0.00016438,2]
[337845064,1726150243573,-500.0,0.00016438,2]
[337845065,1726150243584,-500.0,0.00016438,2]
[337845066,1726150243593,-646.18,0.00016438,2]
[337845067,1726150243602,-500.0,0.00016438,2]
[337845068,1726150243612,-500.0,0.00016438,2]
[337845069,1726150243622,-500.0,0.00016438,2]
[337845070,1726150243631,-500.0,0.00016438,2]
[337845071,1726150243641,-500.0,0.00016438,2]
[337845072,1726150243651,-500.0,0.00016438,2]
[337845073,1726150243661,-500.0,0.00016438,2]
[337845074,1726150243671,-2155.75,0.00016438,2]
[337845075,1726150243680,-500.0,0.00016438,2]
[337845076,1726150243690,-500.0,0.00016438,2]
[337845077,1726150243700,-500.0,0.00016438,2]
[337845078,1726150243709,-837.66,0.00016438,2]
[337845079,1726150243719,-635.24487891,0.00016438,2]
[337845080,1726150243728,-737.21,0.00016438,2]
[337845081,1726150243739,-500.0,0.00016438,2]
[337845082,1726150243751,-614.63,0.00016438,2]
[337845083,1726150243760,-500.0,0.00016438,2]
[337845084,1726150243770,-500.0,0.00016438,2]
[337845085,1726150243780,-500.0,0.00016438,2]
[337845086,1726150243790,-500.0,0.00016438,2]
[337845087,1726150243799,-820.31,0.00016438,2]
[337845088,1726150243809,-500.0,0.00016438,2]
[337845089,1726150243818,-500.0,0.00016438,2]
[337845090,1726150243829,-831.55,0.00016438,2]
[337845091,1726150243839,-500.0,0.00016438,2]
[337845092,1726150243848,-842.69,0.00016438,2]
[337845093,1726150243858,-500.0,0.00016438,2]
[337845094,1726150243868,-505.08043448,0.00016438,2]
[337845095,1726150243877,-500.0,0.00016438,2]
[337845096,1726150243886,-500.0,0.00016438,2]
[337845097,1726150243895,-835.44,0.00016438,2]
[337845098,1726150243905,-851.8,0.00016438,2]
[337845099,1726150243914,-500.0,0.00016438,2]
[337845100,1726150243924,-4349.15,0.00016438,2]
[337845101,1726150243933,-296.55500104,0.00016438,2]
[337845102,1726150243942,-500.0,0.00016438,2]
[337845103,1726150243953,-7670.64,0.00016438,2]
[337845104,1726150243962,-500.0,0.00016438,2]
[337845105,1726150243972,-500.0,0.00016438,2]
[337845106,1726150244129,-500.0,0.00016438,2]
[337845107,1726150244140,-505.51201439,0.00016438,2]
[337845108,1726150244149,-500.0,0.00016438,2]
[337845109,1726150244159,-500.0,0.00016438,2]
[337845110,1726150244169,-500.0,0.00016438,2]
[337845111,1726150244179,-500.0,0.00016438,2]
[337845112,1726150244189,-12908.87,0.00016438,2]
[337845113,1726150244198,-894.03,0.00016438,2]
[337845114,1726150244208,-500.0,0.00016438,2]
[337845115,1726150244218,-500.0,0.00016438,2]
[337845116,1726150244227,-504.4238808,0.00016438,2]
[337845117,1726150244237,-500.0,0.00016438,2]
[337845118,1726150244246,-954.84,0.00016438,2]
[337845119,1726150244256,-733.16,0.00016438,2]
[337845120,1726150244265,-1391.31,0.00016438,2]
[337845121,1726150244275,-187.36790211,0.00016438,2]
[337845122,1726150244285,-550.99245248,0.00016438,2]
[337845123,1726150244295,-502.54879552,0.00016438,2]
[337845124,1726150244304,-561.99,0.00016438,2]
[337845125,1726150244314,-500.0,0.00016438,2]
[337845126,1726150244324,-274.96,0.00016438,2]
[337845127,1726150244334,-500.0,0.00016438,2]
[337845128,1726150244344,-5780.67,0.00016438,2]
[337845129,1726150244354,-150.0,0.00016438,2]
[337845130,1726150244363,-942.13,0.00016438,2]
[337845131,1726150244373,-1854.03,0.00016438,2]
[337845132,1726150244383,-500.0,0.00016438,2]
[337845133,1726150244393,-532.65,0.00016438,2]
[337845134,1726150244402,-500.0,0.00016438,2]
[337845135,1726150244412,-13395.66,0.00016438,2]
[337845136,1726150244421,-500.0,0.00016438,2]
[337845137,1726150244430,-882.5,0.00016438,2]
[337845138,1726150244441,-500.0,0.00016438,2]
[337845139,1726150244450,-987.02,0.00016438,2]
[337845140,1726150244459,-500.0,0.00016438,2]
[337845141,1726150244468,-160.4281,0.00016438,2]
[337845142,1726150244478,-160.4281,0.00016438,2]
[337845143,1726150244487,-160.4281,0.00016438,2]
[337845144,1726150244498,-160.4281,0.00016438,2]
[337845145,1726150244507,-160.4281,0.00016438,2]
[337845146,1726150244517,-160.4281,0.00016438,2]
[337845147,1726150244526,-160.4281,0.00016438,2]
[337845148,1726150244536,-160.4281,0.00016438,2]
[337845149,1726150244546,-160.4281,0.00016438,2]
[337845150,1726150244556,-160.4281,0.00016438,2]
[337845151,1726150244565,-160.4281,0.00016438,2]
[337845152,1726150244575,-160.4281,0.00016438,2]
[337845153,1726150244586,-160.4281,0.00016438,2]
[337845154,1726150244605,-160.4281,0.00016438,2]
[337845155,1726150244615,-160.4281,0.00016438,2]
[337845156,1726150244624,-160.4281,0.00016438,2]
[337845157,1726150244633,-160.4281,0.00016438,2]
[337845158,1726150244643,-160.4281,0.00016438,2]
[337845159,1726150244654,-160.4281,0.00016438,2]
[337845160,1726150244663,-160.428092,0.00016438,2]
[337845161,1726150244673,-211.45970228,0.0001645,2]
[337845162,1726150244683,-200.0,0.00016465,2]
[337845163,1726150244693,-500.0,0.00016473,2]
[337845164,1726150244703,-500.49858895,0.00016473,2]
[337845165,1726150244712,-500.0,0.00016473,2]
[337845166,1726150244721,-501.98218195,0.00016473,2]
[337845167,1726150244731,-500.0,0.00016473,2]
[337845168,1726150244741,-165.2675693,0.00016473,2]
[337845169,1726150244756,-500.0,0.00016473,2]
[337845170,1726150244766,-500.0,0.00016473,2]
[337845171,1726150244775,-500.0,0.00016473,2]
[337845172,1726150244785,-500.0,0.00016473,2]
[337845173,1726150244795,-549.94975505,0.00016473,2]
[337845174,1726150244805,-50519.998,0.00016498,2]
[337845175,1726150244814,-211.45970228,0.00016505,2]
[337845176,1726150244824,-150.01,0.00016542,2]
[337845177,1726150244837,-2488.61915613,0.00016542,2]
[337845178,1726150244847,-150.543,0.00016543,2]
[337845179,1726150244857,-150.512,0.00016543,2]
[337845180,1726150244867,-18001.5490442,0.00016545,2]
[337845182,1726150244877,-42023.3696982,0.00016545,2]
[337845184,1726150244887,-220.159,0.00016555,2]
[337845186,1726150244896,-154.42,0.00016555,2]
[337845188,1726150244906,-524.0,0.00016555,2]
[337845190,1726150244916,-211.45970228,0.00016561,2]
[337845191,1726150244925,-1628.03094705,0.00016602,2]
[337845192,1726150244934,-18001.5490442,0.00016651,2]
[337845193,1726150244943,-30199.87635746,0.00016651,2]
[337845194,1726150245370,-643.01,0.00016438,2]
[337845195,1726150245379,-11823.49334074,0.00016651,2]
[337845196,1726150245389,-249.05061794,0.0001669,2]
[337845197,1726150245398,-151.0,0.0001669,2]
[337845198,1726150245407,-151.0,0.0001669,2]
[337845199,1726150245416,-162.044293,0.0001669,2]
[337845200,1726150245425,-533.094339,0.0001669,2]
[337845201,1726150245435,-533.094339,0.0001669,2]
[337845202,1726150245444,-947.829336,0.0001669,2]
[337845203,1726150245453,-947.829336,0.0001669,2]
[337845204,1726150245463,-324.23841,0.0001669,2]
[337845205,1726150245472,-324.23841,0.0001669,2]
[337845206,1726150245481,-18001.5490442,0.00016692,2]
[337845207,1726150245491,-195.032814,0.00016692,2]
[337845208,1726150245500,-195.032814,0.00016692,2]
[337845209,1726150245509,-151.0,0.00016692,2]
[337845210,1726150245518,-159.419124,0.00016692,2]
[337845211,1726150245528,-159.419124,0.00016692,2]
[337845212,1726150245537,-562.278671,0.00016692,2]
[337845213,1726150245546,-151.0,0.00016692,2]
[337845214,1726150245555,-151.0,0.00016692,2]
[337845215,1726150245564,-200.4306771,0.000167,2]
[337845217,1726150245574,-914.31962285,0.000167,2]
[337845219,1726150245584,-1500.0,0.000167,2]
[337845221,1726150245594,-1500.0,0.000167,2]
[337845223,1726150245604,-1500.0,0.000167,2]
[337845225,1726150245614,-1500.0,0.000167,2]
[337845227,1726150245623,-1500.0,0.000167,2]
[337845228,1726150245632,-1500.0,0.000167,2]
[337845229,1726150245641,-1508.62,0.000167,2]
[337845230,1726150245650,-1500.0,0.000167,2]
[337845232,1726150245659,-1500.0,0.000167,2]
[337845234,1726150245669,-1500.0,0.000167,2]
[337845236,1726150245678,-1500.0,0.000167,2]
[337845238,1726150245687,-153.0,0.000167,2]
[337845240,1726150245696,-153.0,0.000167,2]
[337845242,1726150245705,-306.0,0.000167,2]
[337845243,1726150245714,-153.0,0.000167,2]
[337845244,1726150245723,-153.0,0.000167,2]
[337845245,1726150245732,-446.0684368,0.000167,2]
[337845246,1726150245741,-153.0,0.000167,2]
[337845247,1726150245753,-153.0,0.000167,2]
[337845248,1726150245762,-241.4996687,0.000167,2]
[337845249,1726150245771,-364.4745599,0.000167,2]
[337845250,1726150245781,-153.0,0.000167,2]
[337845251,1726150245791,-153.0,0.000167,2]
[337845252,1726150245800,-18001.5490442,0.00016702,2]
[337845253,1726150245810,-151.0,0.00016702,2]
[337845254,1726150245820,-151.0,0.00016702,2]
[337845255,1726150245830,-627.929473,0.00016702,2]
[337845256,1726150245839,-151.0,0.00016702,2]
[337845257,1726150245848,-180.932478,0.00016702,2]
[337845258,1726150245858,-180.932478,0.00016702,2]
[337845259,1726150245868,-151.0,0.00016702,2]
[337845260,1726150245877,-151.0,0.00016702,2]
[337845261,1726150245887,-151.0,0.00016702,2]
[337845262,1726150245897,-159.071171,0.00016702,2]
[337845263,1726150245906,-159.071171,0.00016702,2]
[337845264,1726150245915,-151.0,0.00016702,2]
[337845265,1726150245925,-151.0,0.00016702,2]
[337845266,1726150245934,-533.094339,0.00016702,2]
[337845267,1726150245943,-533.094339,0.00016702,2]
[337845268,1726150245952,-947.829336,0.00016702,2]
[337845269,1726150245961,-947.829336,0.00016702,2]
[337845270,1726150245970,-324.23841,0.00016702,2]
[337845271,1726150245980,-324.23841,0.00016702,2]
[337845272,1726150245989,-151.0,0.00016702,2]
[337845273,1726150245999,-54004.6471326,0.00016702,2]
[337845274,1726150246008,-472.04279137,0.00016708,2]
[337845275,1726150246018,-155.0,0.0001671,2]
[337845276,1726150246028,-65239.12410039,0.00016712,3]
[337845277,1726150246038,-404.14104967,0.00016712,2]
[337845278,1726150246047,-151.0,0.00016712,2]
[337845279,1726150246057,-151.0,0.00016712,2]
[337845280,1726150246068,-191.294328,0.00016712,2]
[337845281,1726150246078,-500.0,0.00016712,2]
[337845282,1726150246087,-500.0,0.00016712,2]
[337845283,1726150246098,-505.93039818,0.00016712,2]
[337845284,1726150246107,-500.0,0.00016712,2]
[337845285,1726150246117,-500.0,0.00016712,2]
[337845286,1726150246127,-500.0,0.00016712,2]
[337845287,1726150246136,-500.0,0.00016712,2]
[337845288,1726150246145,-504.82215628,0.00016712,2]
[337845289,1726150246155,-500.0,0.00016712,2]
[337845290,1726150246166,-151.0,0.00016712,2]
[337845291,1726150246175,-151.450246,0.00016712,2]
[337845292,1726150246186,-500.0,0.00016712,2]
[337845293,1726150246195,-500.0,0.00016712,2]
[337845294,1726150246205,-500.0,0.00016712,2]
[337845295,1726150246215,-500.0,0.00016712,2]
[337845296,1726150246224,-742.36,0.00016712,2]
[337845297,1726150246234,-151.0,0.00016712,2]
[337845298,1726150246243,-151.0,0.00016712,2]
[337845299,1726150246253,-500.0,0.00016712,2]
[337845300,1726150246262,-774.95,0.00016712,2]
[337845301,1726150246272,-568.39597007,0.00016712,2]
[337845302,1726150246281,-256.064203,0.00016712,2]
[337845303,1726150246291,-500.0,0.00016712,2]
[337845304,1726150246302,-500.0,0.00016712,2]
[337845305,1726150246311,-500.0,0.00016712,2]
[337845307,1726150246321,-500.0,0.00016712,2]
[337845308,1726150246332,-500.0,0.00016712,2]
[337845309,1726150246342,-500.0,0.00016712,2]
[337845310,1726150246352,-500.0,0.00016712,2]
[337845311,1726150246362,-500.0,0.00016712,2]
[337845312,1726150246372,-500.0,0.00016712,2]
[337845313,1726150246381,-501.75227839,0.00016712,2]
[337845314,1726150246390,-500.0,0.00016712,2]
[337845315,1726150246399,-500.0,0.00016712,2]
[337845316,1726150246409,-500.0,0.00016712,2]
[337845317,1726150246418,-500.0,0.00016712,2]
[337845318,1726150246428,-500.0,0.00016712,2]
[337845319,1726150246438,-343.03527945,0.00016712,2]
[337845320,1726150246447,-500.0,0.00016712,2]
[337845321,1726150246494,-500.0,0.00016712,2]
[337845322,1726150246504,-500.0,0.00016712,2]
[337845323,1726150246513,-500.0,0.00016712,2]
[337845324,1726150246526,-500.0,0.00016712,2]
[337845325,1726150246535,-501.6370207,0.00016712,2]
[337845326,1726150246544,-500.0,0.00016712,2]
[337845327,1726150246553,-207.33866013,0.00016712,2]
[337845328,1726150246563,-500.0,0.00016712,2]
[337845329,1726150246573,-500.0,0.00016712,2]
[337845330,1726150246584,-500.0,0.00016712,2]
[337845331,1726150246593,-654.69,0.00016712,2]
[337845332,1726150246603,-500.0,0.00016712,2]
[337845333,1726150246612,-3815.174827,0.00016712,2]
[337845334,1726150246623,-3815.174827,0.00016712,2]
[337845335,1726150246633,-500.0,0.00016712,2]
[337845336,1726150246642,-500.0,0.00016712,2]
[337845337,1726150246652,-500.0,0.00016712,2]
[337845338,1726150246661,-151.0,0.00016712,2]
[337845339,1726150246671,-151.0,0.00016712,2]
[337845340,1726150246680,-500.0,0.00016712,2]
[337845341,1726150246689,-500.0,0.00016712,2]
[337845342,1726150246698,-780.7,0.00016712,2]
[337845343,1726150246708,-500.0,0.00016712,2]
[337845344,1726150246717,-627.929473,0.00016712,2]
[337845345,1726150246727,-627.929473,0.00016712,2]
[337845346,1726150246735,-500.0,0.00016712,2]
[337845347,1726150246745,-500.0,0.00016712,2]
[337845348,1726150246756,-500.0,0.00016712,2]
[337845349,1726150246766,-500.84,0.00016712,2]
[337845350,1726150246776,-151.0,0.00016712,2]
[337845351,1726150246786,-151.0,0.00016712,2]
[337845352,1726150246797,-500.0,0.00016712,2]
[337845353,1726150246806,-500.0,0.00016712,2]
[337845354,1726150246816,-180.932478,0.00016712,2]
[337845355,1726150246826,-180.932478,0.00016712,2]
[337845356,1726150246838,-180.932478,0.00016712,2]
[337845357,1726150246847,-180.932478,0.00016712,2]
[337845358,1726150246857,-500.0,0.00016712,2]
[337845359,1726150246866,-823.0,0.00016712,2]
[337845360,1726150246875,-500.0,0.00016712,2]
[337845361,1726150246884,-500.0,0.00016712,2]
[337845362,1726150246893,-500.0,0.00016712,2]
[337845363,1726150246902,-530.23725916,0.00016712,2]
[337845364,1726150246912,-521.87,0.00016712,2]
[337845365,1726150246921,-500.0,0.00016712,2]
[337845366,1726150246930,-151.0,0.00016712,2]
[337845367,1726150246939,-151.0,0.00016712,2]
[337845368,1726150246949,-500.0,0.00016712,2]
[337845369,1726150246958,-214.784799,0.00016712,2]
[337845370,1726150246968,-151.0,0.00016712,2]
[337845371,1726150246977,-151.0,0.00016712,2]
[337845372,1726150246986,-500.0,0.00016712,2]
[337845373,1726150246996,-159.071171,0.00016712,2]
[337845374,1726150247005,-159.071171,0.00016712,2]
[337845375,1726150247015,-159.071171,0.00016712,2]
[337845376,1726150247024,-500.0,0.00016712,2]
[337845377,1726150247033,-159.071171,0.00016712,2]
[337845378,1726150247042,-500.0,0.00016712,2]
[337845379,1726150247051,-500.0,0.00016712,2]
[337845380,1726150247061,-500.0,0.00016712,2]
[337845381,1726150247071,-506.19365173,0.00016712,2]
[337845382,1726150247082,-500.0,0.00016712,2]
[337845383,1726150247091,-546.68,0.00016712,2]
[337845384,1726150247101,-500.0,0.00016712,2]
[337845385,1726150247110,-826.0,0.00016712,2]
[337845386,1726150247119,-500.0,0.00016712,2]
[337845387,1726150247129,-654.43,0.00016712,2]
[337845388,1726150247138,-500.0,0.00016712,2]
[337845389,1726150247149,-500.0,0.00016712,2]
[337845390,1726150247158,-500.0,0.00016712,2]
[337845391,1726150247167,-500.0,0.00016712,2]